fUSD/lending_fUSD_20240624
["ID","MTS","AMOUNT","RATE_DAILY","PERIOD"]
[330309300,1719250233960,-322.01,0.000156,2]
[330309302,1719250233971,-322.01,0.00015642,2]
[330309304,1719250233980,-322.01,0.00015684,2]
[330309306,1719250233991,-1053.97863169,0.00015726,2]
[330309309,1719250234002,-1053.97863169,0.00015726,2]
[330309311,1719250234012,-322.01,0.00015726,2]
[330309313,1719250234022,-322.01,0.00015768,2]
[330309315,1719250234032,-322.01,0.0001581,2]
[330309317,1719250234042,-156.217,0.00015811,2]
[330309319,1719250234052,-322.01,0.00015852,2]
[330309321,1719250234062,-322.01,0.00015894,2]
[330309323,1719250234072,-253.90432169,0.0001592,2]
[330309324,1719250234082,-322.01,0.00015936,2]
[330309326,1719250234092,-322.01,0.00015979,2]
[330309328,1719250234107,-293.52980578,0.0001602,2]
[330309331,1719250234116,-322.01,0.00016021,2]
[330309333,1719250234127,-322.01,0.00016063,2]
[330309335,1719250234137,-322.01,0.00016105,2]
[330309337,1719250234147,-155.1014532,0.00016115,2]
[330309339,1719250234156,-5222.51,0.00016116,2]
[330309341,1719250234166,-258.61409544,0.00016146,2]
[330309343,1719250234177,-155.0,0.00016146,2]
[330309345,1719250234186,-322.01,0.00016147,2]
[330309347,1719250234197,-1000.0,0.00016196,2]
[330309348,1719250234207,-208.27255192,0.00016545,2]
[330309351,1719250234218,-156.217,0.00016641,2]
[330309353,1719250234227,-345.85,0.00016972,2]
[330309355,1719250234237,-414.57,0.00016986,2]
[330309357,1719250234248,-787.77103259,0.00016999,2]
[330309359,1719250234257,-699.0,0.00017,3]
[330309361,1719250234267,-339.31808863,0.00017259,2]
[330309362,1719250234278,-161.05117831,0.00017439,2]
[330309364,1719250234288,-753.70840975,0.00017439,2]
[330309366,1719250234297,-1012.62731708,0.0001744,2]
[330309368,1719250234308,-283.46778865,0.00017442,2]
[330309370,1719250234318,-169.87,0.00017443,2]
[330309372,1719250234328,-155.0,0.00017515,2]
[330309374,1719250234337,-158.22591328,0.00017554,2]
[330309376,1719250234352,-235.17702148,0.00017555,2]
[330309377,1719250234361,-646.93267551,0.00017556,2]
[330309378,1719250234371,-156.217,0.00017558,2]
[330309379,1719250234381,-167.97,0.00017567,2]
[330309380,1719250234391,-1000.0,0.00017995,2]
[330309381,1719250234566,-156.217,0.00018574,2]
[330309382,1719250234576,-169.55934429,0.00018849,2]
[330309383,1719250234585,-250.0,0.00019178,2]
[330309384,1719250234594,-500.0,0.000192,7]
[330309385,1719250234607,-414.57,0.0001925,2]
[330309386,1719250234616,-617.0,0.00019671,2]
[330309387,1719250234625,-448.0,0.00019671,2]
[330309388,1719250234635,-443.0,0.00019671,2]
[330309389,1719250234644,-812.0,0.00019671,2]
[330309390,1719250234653,-1304.0,0.00019671,2]
[330309391,1719250234663,-2411.0,0.00019671,2]
[330309392,1719250234673,-547.0,0.00019671,2]
[330309393,1719250234682,-3201.0,0.00019671,2]
[330309394,1719250234691,-1984.0,0.00019671,2]
[330309395,1719250234700,-1068.0,0.00019671,2]
[330309396,1719250234710,-1272.0,0.00019671,2]
[330309397,1719250234719,-1040.392,0.00019671,2]
[330309398,1719250234729,-1655.0,0.00019671,2]
[330309399,1719250234739,-288.0,0.00019671,2]
[330309400,1719250234748,-345.85,0.00019712,2]
[330309401,1719250234758,-1000.0,0.00019795,2]
[330309402,1719250234767,-3817.993,0.000199,2]
[330309403,1719250234776,-326.82157281,0.0002,2]
[330309404,1719250234786,-155.0,0.0002,2]
[330309405,1719250234795,-155.0,0.0002,2]
[330309406,1719250234804,-306.0214142,0.0002,2]
[330309407,1719250234814,-150.191677,0.0002,2]
[330309408,1719250234823,-432.18659181,0.0002,2]
[330309409,1719250234833,-432.18659181,0.0002,2]
[330309410,1719250234841,-432.18659181,0.0002,2]
[330309411,1719250234854,-432.18659181,0.0002,2]
[330309412,1719250234863,-432.18659181,0.0002,2]
[330309413,1719250234873,-432.18659181,0.0002,2]
[330309414,1719250234882,-432.18659181,0.0002,2]
[330309415,1719250234892,-432.18659181,0.0002,2]
[330309416,1719250234902,-432.18659181,0.0002,2]
[330309417,1719250234914,-432.18659181,0.0002,2]
[330309418,1719250234924,-432.18659181,0.0002,2]
[330309419,1719250234934,-3389.0,0.00020024,2]
[330309420,1719250234943,-2016.28833189,0.00020207,2]
[330309421,1719250234953,-2016.28833189,0.00020207,2]
[330309422,1719250234963,-1273.41523523,0.00020208,2]
[330309423,1719250234972,-981.42461153,0.00020225,2]
[330309424,1719250234982,-1273.41523523,0.00020226,2]
[330309425,1719250234992,-1652.40350722,0.00020713,2]
[330309426,1719250235002,-318.9653208,0.00020722,2]
[330309427,1719250235011,-4726.67188776,0.00020737,2]
[330309428,1719250235021,-49814.17346081,0.000208,3]
[330309429,1719250235034,-3600.0,0.000208,3]
[330309430,1719250235045,-795.57001,0.000208,3]
[330309431,1719250235056,-443.73261381,0.000208,3]
[330309432,1719250235068,-3905.00640642,0.000208,3]
[330309435,1719250238172,-353.39281596,0.00015788,2]
[330309438,1719250238185,-600.0,0.00015788,2]
[330309440,1719250238489,-3727.44791507,0.00015788,2]
[330309442,1719250238501,-254.76464562,0.00015788,2]
[330309444,1719250238514,-1619.93282967,0.00015788,2]
[330309446,1719250238524,-1012.62731708,0.00017438,2]
[330309448,1719250238534,-412.61839352,0.00017514,2]
[330309450,1719250238543,-195.9976809,0.00017514,2]
[330309452,1719250238554,-715.71837698,0.00017553,2]
[330309454,1719250238565,-235.17702148,0.00017553,2]
[330309456,1719250238575,-163.57668758,0.00017566,2]
[330309458,1719250238585,-432.18659181,0.0002,2]
[330309460,1719250238596,-432.18659181,0.0002,2]
[330309462,1719250238612,-432.18659181,0.0002,2]
[330309464,1719250238623,-432.18659181,0.0002,2]
[330309466,1719250238633,-432.18659181,0.0002,2]
[330309468,1719250238643,-432.18659181,0.0002,2]
[330309470,1719250238654,-432.18659181,0.0002,2]
[330309473,1719250238664,-432.18659181,0.0002,2]
[330309475,1719250238674,-432.18659181,0.0002,2]
[330309477,1719250238685,-432.18659181,0.0002,2]
[330309479,1719250238696,-2.59396622,0.0002,2]
[330309496,1719250238873,-429.59262559,0.0002,2]
[330309498,1719250238885,-432.18659181,0.0002,2]
[330309500,1719250238900,-342.2340026,0.0002,2]
[330309554,1719250239488,-89.95258921,0.0002,2]
[330309556,1719250239498,-432.18659181,0.0002,2]
[330309558,1719250239509,-97.8829306,0.0002,2]
[330309560,1719250239522,-334.30366121,0.0002,2]
[330309562,1719250239532,-432.18659181,0.0002,2]
[330309564,1719250239543,-128.80642055,0.000202,2]
[330309567,1719250239555,-443.13092382,0.000202,2]
[330309683,1719250240903,-6000.0,0.00016676,2]
[330309685,1719250240916,-492.07500002,0.00016676,2]
[330309687,1719250240929,-63.4632063,0.00016676,2]
[330309689,1719250240939,-1197.0,0.00019671,2]
[330309691,1719250240951,-432.18659181,0.0002,2]
[330309693,1719250240961,-432.18659181,0.0002,2]
[330309695,1719250240971,-432.18659181,0.0002,2]
[330309697,1719250240982,-432.18659181,0.0002,2]
[330309699,1719250240992,-432.18659181,0.0002,2]
[330309701,1719250241003,-432.18659181,0.0002,2]
[330309703,1719250241014,-432.18659181,0.0002,2]
[330309705,1719250241024,-1444.35098752,0.000202,2]
[330309707,1719250241035,-29448.89663346,0.000208,3]
[330309709,1719250241045,-150.191677,0.00020822,2]
[330309711,1719250241055,-150.0,0.00020864,2]
[330309713,1719250241065,-529.80766427,0.00020889,2]
[330309715,1719250241075,-502.33311118,0.00020889,2]
[330309717,1719250241086,-529.80766427,0.00020889,2]
[330309719,1719250241095,-19604.0280983,0.00020889,2]
[330309722,1719250241109,-176.45216287,0.00020889,2]
[330309723,1719250241121,-296.51463104,0.00020892,2]
[330309725,1719250241131,-150.0,0.00020893,2]
[330309727,1719250241141,-187.96812151,0.00020895,2]
[330309729,1719250241150,-163.58641568,0.00020895,2]
[330309731,1719250241160,-485.80443563,0.00020895,2]
[330309733,1719250241171,-501.27197359,0.00020895,2]
[330309736,1719250241181,-491.28123776,0.00020895,2]
[330309738,1719250241191,-887.93932126,0.00020896,2]
[330309740,1719250241202,-622.21690927,0.00020896,2]
[330309742,1719250241212,-208.974074,0.00020896,7]
[330309744,1719250241222,-532.10139623,0.00020897,2]
[330309746,1719250241233,-557.58197655,0.00020897,2]
[330309748,1719250241243,-169.07108945,0.00020897,2]
[330309750,1719250241253,-368.47136735,0.00020897,2]
[330309752,1719250241263,-1251.71322753,0.00020897,2]
[330309754,1719250241273,-150.0,0.00020898,2]
[330309756,1719250241283,-150.0,0.00020903,2]
[330309758,1719250241293,-11000.9223906,0.00020914,3]
[330309759,1719250241303,-150.0,0.00020925,2]
[330309761,1719250241314,-155.0,0.00020925,2]
[330309764,1719250241324,-437.94257202,0.00020925,2]
[330309768,1719250241335,-150.0,0.00020926,2]
[330309771,1719250241344,-618.98596418,0.0002093,2]
[330309772,1719250241358,-259.41603644,0.0002093,2]
[330309775,1719250241368,-1036.0,0.00020939,2]
[330309777,1719250241378,-150.0,0.00020941,2]
[330309779,1719250241388,-150.0,0.00020944,2]
[330309780,1719250241398,-1233.0020101,0.00020951,2]
[330309782,1719250241407,-11000.9223906,0.00020957,3]
[330309785,1719250241418,-1500.0,0.00020961,2]
[330309787,1719250241427,-500.0,0.00020966,2]
[330309788,1719250241438,-200.0,0.00020966,2]
[330309790,1719250241448,-500.0,0.00020966,2]
[330309792,1719250241458,-200.0,0.00020967,2]
[330309794,1719250241468,-200.0,0.00020967,2]
[330309796,1719250241479,-500.0,0.00020967,2]
[330309798,1719250241489,-500.0,0.00020967,2]
[330309801,1719250241499,-200.0,0.00020967,2]
[330309803,1719250241509,-200.0,0.00020967,2]
[330309804,1719250241519,-1500.0,0.00020981,2]
[330309807,1719250241529,-1250.0,0.00021,2]
[330309808,1719250241539,-7148.95515304,0.00021,2]
[330309810,1719250241549,-202.552159,0.00021,2]
[330309812,1719250241559,-300.0,0.00021009,2]
[330309815,1719250241570,-150.0,0.00021042,2]
[330309816,1719250241579,-150.0,0.00021045,2]
[330309818,1719250241590,-300.0,0.00021063,2]
[330309820,1719250241604,-8160.89132266,0.00021077,3]
[330309823,1719250241614,-3634.47517696,0.00021078,3]
[330309825,1719250241627,-4526.4161457,0.00021078,3]
[330309827,1719250241636,-11000.9223906,0.00021085,3]
[330309829,1719250241645,-32643.5652906,0.00021085,3]
[330309831,1719250241654,-11000.9223906,0.00021086,3]
[330309833,1719250241664,-6435.87438252,0.00021087,3]
[330309835,1719250241679,-4540.3092,0.00021087,3]
[330309846,1719250241771,-432.18659181,0.0002,2]
[330309848,1719250241783,-432.18659181,0.0002,2]
[330309850,1719250241794,-336.58657638,0.00021087,3]
[330309852,1719250241807,-3066.86235429,0.00021087,3]
[330309966,1719250243266,-175.48545791,0.0001592,2]
[330309971,1719250243277,-365.08571498,0.00019671,2]
[330309975,1719250243289,-1464.91428502,0.00019671,2]
[330309978,1719250243298,-432.18659181,0.0002,2]
[330309980,1719250243307,-432.18659181,0.0002,2]
[330309983,1719250243317,-432.18659181,0.0002,2]
[330309986,1719250243326,-432.18659181,0.0002,2]
[330309989,1719250243335,-432.18659181,0.0002,2]
[330309991,1719250243345,-432.18659181,0.0002,2]
[330309993,1719250243360,-432.18659181,0.0002,2]
[330309995,1719250243369,-432.18659181,0.0002,2]
[330309997,1719250243378,-157.6614531,0.00020895,2]
[330309998,1719250243387,-155.0,0.00020895,2]
[330310000,1719250243396,-7622.21226791,0.00021087,3]
[330310002,1719250243405,-11000.9223906,0.00021089,3]
[330310003,1719250243415,-6539.24834894,0.00021093,2]
[330310136,1719250244783,-270.5367665,0.0002,2]
[330310139,1719250244803,-161.64982531,0.0002,2]
[330310141,1719250244819,-2027.75737469,0.00021093,2]
[330310144,1719250244838,-41432.99427637,0.00021093,2]
[330310147,1719250244859,-11000.9223906,0.00021094,3]
[330310150,1719250244880,-8160.89132266,0.00021094,3]
[330310152,1719250244898,-11000.9223906,0.00021098,3]
[330310155,1719250244914,-8160.89132266,0.00021098,3]
[330310158,1719250244934,-11000.9223906,0.00021104,3]
[330310160,1719250244951,-8160.89132266,0.00021104,3]
[330310163,1719250244967,-22001.8447811,0.00021108,3]
[330310166,1719250244983,-16321.7826453,0.00021108,3]
[330310168,1719250244999,-226.23107943,0.00021112,2]
[330310171,1719250245014,-11000.9223906,0.00021114,3]
[330310173,1719250245029,-8160.89132266,0.00021114,3]
[330310176,1719250245044,-33002.7671717,0.00021118,3]
[330310178,1719250245060,-16321.7826453,0.00021118,3]
[330310181,1719250245075,-150.0,0.00021121,2]
[330310184,1719250245090,-3580.7254224,0.00021124,2]
[330310186,1719250245113,-9738.5276608,0.00021124,2]
[330310189,1719250245129,-33002.7671717,0.00021128,3]
[330310192,1719250245145,-32643.5652906,0.00021128,3]
[330310195,1719250245160,-155.0,0.00021135,2]
[330310197,1719250245174,-236.5650686,0.00021135,2]
[330310200,1719250245189,-2000.0,0.00021136,2]
[330310202,1719250245203,-200.0,0.00021136,2]
[330310205,1719250245218,-59216.7435168,0.00021138,2]
[330310208,1719250245234,-600.0,0.00021168,2]
[330310210,1719250245249,-172.58,0.0002123,2]
[330310213,1719250245265,-168.925872,0.0002128,2]
[330310216,1719250245279,-2000.0,0.00021347,2]
[330310218,1719250245295,-200.0,0.00021347,2]
[330310221,1719250245310,-157.272449,0.00021366,2]
[330310223,1719250245325,-318.96532078,0.00021445,2]
[330310226,1719250245341,-414.57,0.00021514,2]
[330310228,1719250245362,-1203.73598368,0.00021561,2]
[330310230,1719250245377,-200.0,0.00021561,2]
[330310233,1719250245392,-8160.89132266,0.00021593,3]
[330310235,1719250245406,-1000.0,0.00021595,2]
[330310238,1719250245421,-20000.0,0.00021603,2]
[330310241,1719250245436,-175.58037395,0.00021603,2]
[330310243,1719250245451,-168.925872,0.00021623,2]
[330310246,1719250245466,-153.622441,0.00021623,2]
[330310249,1719250245481,-157.272449,0.00021623,2]
[330310251,1719250245495,-8160.89132266,0.00021634,3]
[330310254,1719250245510,-486.6,0.00021644,2]
[330310257,1719250245526,-543.23,0.00021644,2]
[330310259,1719250245541,-177.42,0.00021644,2]
[330310262,1719250245556,-154.92,0.00021644,2]
[330310265,1719250245571,-150.78,0.00021644,2]
[330310267,1719250245586,-150.191677,0.00021644,2]
[330310270,1719250245605,-200.0,0.00021776,2]
[330310272,1719250245620,-2594.90658327,0.00021781,2]
[330310275,1719250245635,-300.0,0.00021822,2]
[330310278,1719250245651,-734.7516,0.00021847,2]
[330310280,1719250245667,-239.51803736,0.00021887,2]
[330310283,1719250245681,-166.63325297,0.00021892,2]
[330310286,1719250245697,-1000.0,0.000219,2]
[330310288,1719250245713,-265.81736577,0.00021917,2]
[330310291,1719250245730,-800.28,0.00021918,2]
[330310293,1719250245745,-1237.84,0.00021918,2]
[330310296,1719250245761,-359.41,0.00021918,2]
[330310299,1719250245777,-1562.82024111,0.00021983,2]
[330310301,1719250245792,-32643.5652906,0.0002199,3]
[330310304,1719250245807,-200.0,0.00021994,2]
[330310306,1719250245823,-792.34662231,0.00022,2]
[330310309,1719250245840,-155.0,0.00022,2]
[330310312,1719250245857,-500.0,0.00022,4]
[330310315,1719250245873,-500.0,0.00022,4]
[330310344,1719250246094,-500.0,0.00022,4]
[330310348,1719250246127,-60034.10728929,0.00022,2]
[330310350,1719250246136,-739.0,0.00022,2]
[330310352,1719250246145,-370.06369904,0.00022,2]
[330310354,1719250246155,-172.0,0.00022,2]
[330310356,1719250246164,-657.53021582,0.0002201,2]
[330310358,1719250246173,-150.0,0.00022057,2]
[330310360,1719250246183,-150.0,0.00022057,2]
[330310362,1719250246192,-150.0,0.00022057,2]
[330310364,1719250246201,-150.0,0.00022057,2]
[330310366,1719250246211,-150.0,0.00022057,2]
[330310368,1719250246220,-150.0,0.00022057,2]
[330310370,1719250246229,-189.92639878,0.0002206,2]
[330310372,1719250246239,-8160.89132266,0.00022076,3]
[330310374,1719250246248,-2485.8154919,0.00022086,2]
[330310376,1719250246257,-150.96869853,0.00022144,2]
[330310378,1719250246267,-318.96532078,0.00022167,2]
[330310382,1719250246276,-154.28020165,0.00022184,2]
[330310386,1719250246285,-6423.4003986,0.00022203,2]
[330310389,1719250246295,-150.96869853,0.00022301,2]
[330310391,1719250246304,-154.74729486,0.00022313,2]
[330310393,1719250246314,-166.66666666,0.00022332,2]
[330310395,1719250246323,-692.25005183,0.00022334,2]
[330310397,1719250246333,-150.65510339,0.00022345,2]
[330310399,1719250246342,-1055.75552114,0.00022346,2]
[330310400,1719250246354,-187.32255344,0.00022351,2]
[330310403,1719250246363,-8160.89132266,0.0002239,3]
[330310405,1719250246372,-10633.63457295,0.000224,2]
[330310407,1719250246381,-155.67775372,0.0002241,2]
[330310408,1719250246390,-458.1984538,0.00022416,2]
[330310411,1719250246399,-891.49572315,0.0002242,2]
[330310413,1719250246409,-150.0303075,0.00022441,2]
[330310414,1719250246418,-151.0,0.00022452,3]
[330310415,1719250246427,-150.191677,0.00022466,2]
[330310416,1719250246436,-189.92639878,0.00022518,2]
[330310417,1719250246446,-166.66666666,0.0002253,2]
[330310418,1719250246455,-150.96869853,0.0002253,2]
[330310419,1719250246464,-154.74729486,0.00022551,2]
[330310420,1719250246473,-160.29381144,0.0002261,2]
[330310421,1719250246482,-8160.89132266,0.00022661,3]
[330310422,1719250246491,-6423.4003986,0.00022663,2]
[330310423,1719250246499,-448.0,0.00022671,2]
[330310424,1719250246508,-1530.477,0.00022671,2]
[330310425,1719250246517,-692.25005183,0.00022677,2]
[330310426,1719250246527,-233.6481705,0.00022699,2]
[330310428,1719250246536,-187.32255344,0.00022699,2]
[330310430,1719250246547,-769.2791437,0.000227,3]
[330310432,1719250246556,-156.36316987,0.00022703,2]
[330310434,1719250246565,-154.74729486,0.00022722,2]
[330310436,1719250246574,-155.67775372,0.00022741,2]
[330310438,1719250246583,-150.0303075,0.00022763,2]
[330310440,1719250246593,-320.14874148,0.00022771,2]
[330310442,1719250246603,-669.16164916,0.00022789,2]
[330310444,1719250246612,-8160.89132266,0.0002279,3]
[330310446,1719250246621,-2000.0,0.000228,2]
[330310448,1719250246631,-2000.0,0.000228,2]
[330310450,1719250246640,-2000.0,0.000228,2]
[330310452,1719250246650,-2000.0,0.000228,2]
[330310454,1719250246659,-2000.0,0.000228,2]
[330310456,1719250246668,-2000.0,0.000228,2]
[330310458,1719250246677,-2000.0,0.000228,2]
[330310460,1719250246686,-2000.0,0.000228,2]
[330310462,1719250246696,-161.07088121,0.00022841,2]
[330310464,1719250246706,-1090.54732043,0.00022847,2]
[330310466,1719250246715,-6423.4003986,0.00022847,2]
[330310468,1719250246724,-418.1182816,0.0002288,2]
[330310470,1719250246733,-262.83323784,0.0002288,2]
[330310472,1719250246741,-5234.88773212,0.0002288,3]
[330310474,1719250246755,-4649.31925454,0.0002288,3]
[330310476,1719250246766,-2495.19406323,0.0002288,3]
[330310478,1719250246777,-463.51367634,0.0002288,3]
[330310481,1719250246788,-427.18428536,0.0002288,3]
[330310483,1719250246799,-537.88,0.0002288,3]
[330310485,1719250246810,-768.44720034,0.0002288,3]
[330310570,1719250247625,-602.61,0.00017563,2]
[330310572,1719250247637,-5952.92820632,0.00017563,2]
[330310574,1719250247646,-432.18659181,0.0002,2]
[330310576,1719250247656,-432.18659181,0.0002,2]
[330310578,1719250247665,-432.18659181,0.0002,2]
[330310580,1719250247675,-432.18659181,0.0002,2]
[330310582,1719250247684,-432.18659181,0.0002,2]
[330310584,1719250247693,-432.18659181,0.0002,2]
[330310586,1719250247702,-432.18659181,0.0002,2]
[330310588,1719250247712,-432.18659181,0.0002,2]
[330310590,1719250247721,-432.18659181,0.0002,2]
[330310592,1719250247731,-432.18659181,0.0002,2]
[330310594,1719250247740,-432.18659181,0.0002,2]
[330310596,1719250247749,-1745.35643337,0.0002288,3]
[330310598,1719250247759,-418.1182816,0.00022885,2]
[330310600,1719250247768,-262.83323783,0.00022885,2]
[330310602,1719250247777,-23267.63169962,0.0002289,2]
[330310604,1719250247786,-166.63325296,0.0002289,2]
[330310606,1719250247796,-275.34981313,0.0002289,2]
[330310608,1719250247805,-8160.89132266,0.0002289,3]
[330310610,1719250247815,-418.1182816,0.0002289,2]
[330310612,1719250247824,-318.96532078,0.0002289,2]
[330310614,1719250247833,-262.83323783,0.0002289,2]
[330310616,1719250247843,-8160.89132266,0.00022897,3]
[330310618,1719250247855,-2000.0,0.00022899,2]
[330310620,1719250247864,-2000.0,0.000229,2]
[330310622,1719250247873,-2262.0,0.000229,2]
[330310624,1719250247883,-440.0,0.000229,2]
[330310626,1719250247892,-10504.0,0.000229,2]
[330310628,1719250247905,-190.0,0.000229,5]
[330310630,1719250247915,-997.0,0.000229,2]
[330310632,1719250247928,-302.57430739,0.00022907,2]
[330310634,1719250247937,-16321.7826453,0.00022964,3]
[330310636,1719250247946,-33028.63676904,0.00022974,2]
[330310639,1719250247959,-11938.11087065,0.00022974,2]
[330310641,1719250247970,-1671.17631581,0.00022974,2]
[330310657,1719250248116,-432.18659181,0.0002,2]
[330310659,1719250248125,-2290.19505074,0.00022974,2]
[330310661,1719250248136,-2494.77292156,0.00022974,2]
[330310663,1719250248145,-3950.32707844,0.00022974,2]
[330310665,1719250248156,-5199.61708795,0.00022974,2]
[330310667,1719250248167,-756.81352867,0.00022974,2]
[330310669,1719250248178,-279.9522699,0.00022974,2]
[330310672,1719250248189,-33442.33037384,0.00022974,2]
[330310674,1719250248199,-23997.66964216,0.00022974,2]
[330310676,1719250248210,-5211.295748,0.00022974,2]
[330310678,1719250248221,-6626.22335954,0.00022974,2]
[330310680,1719250248231,-3089.1223472,0.00022974,2]
[330310682,1719250248240,-2597.519272,0.00022974,2]
[330310684,1719250248249,-2105.9161968,0.00022974,2]
[330310685,1719250248258,-8401.5108328,0.00022974,2]
[330310686,1719250248267,-5281.60030662,0.00022974,2]
[330310687,1719250248278,-1782.89369828,0.00022974,2]
[330310688,1719250248287,-1136.50871006,0.00022974,2]
[330310689,1719250248298,-327.6,0.00022974,2]
[330310690,1719250248308,-553.56974129,0.00022974,2]
[330310691,1719250248319,-3693.93006249,0.00022974,2]
[330310692,1719250248330,-15.86866316,0.00022974,2]
[330310693,1719250248339,-523.20133684,0.0002298,2]
[330310694,1719250248353,-379.00269645,0.0002298,2]
[330310695,1719250248389,-432.18659181,0.0002,2]
[330310696,1719250248398,-287.6547065,0.0002,2]
[330310697,1719250248409,-144.53188531,0.0002,2]
[330310698,1719250248418,-28318.41811469,0.0002298,2]
[330311031,1719250445988,10000.0,0.000118,2]
[330311032,1719250446015,10000.0,0.000118,2]
[330311033,1719250446041,6327.33369643,0.000118,2]
[330311034,1719250450034,3672.66630357,0.00012,2]
[330311035,1719250450059,1327.33369643,0.00012,2]
[330311036,1719250454244,475.15035257,0.00011,2]
[330311050,1719251316326,-438.75,0.00011277,2]
[330311051,1719251316360,-169.27557674,0.00011302,2]
[330311052,1719251316395,-1222.16643458,0.00011402,2]
[330311054,1719251316440,-1152.36871894,0.00011402,2]
[330311055,1719251316474,-250.0,0.00012993,2]
[330311056,1719251316510,-690.00328514,0.00013034,2]
[330311057,1719251316543,-1196.69402563,0.00013035,2]
[330311061,1719251355243,-17.24597437,0.00013035,2]
[330311062,1719251355267,-543.14708226,0.00013066,2]
[330311063,1719251355294,-536.46036163,0.0001308,2]
[330311064,1719251355318,-158.78971575,0.00013312,2]
[330311065,1719251355340,-660.16507437,0.00013312,2]
[330311066,1719251355364,-482.71584201,0.00013313,2]
[330311067,1719251355386,-150.0,0.00013315,2]
[330311068,1719251355406,-517.90803403,0.00013328,2]
[330311069,1719251355426,-1042.6865679,0.00013333,2]
[330311070,1719251355448,-1801.66958246,0.00013347,2]
[330311071,1719251359117,-1304.39137352,0.00013347,2]
[330311072,1719251359138,-150.0,0.00013369,2]
[330311073,1719251360105,-150.0,0.00013482,2]
[330311074,1719251360127,-9318.38948182,0.00013483,2]
[330311075,1719251362100,-1044.61278859,0.00013483,2]
[330311091,1719251432840,-157.51550643,0.00013439,2]
[330311092,1719251432850,-430.54118397,0.00013482,2]
[330311093,1719251432860,-2202.28389868,0.00013483,2]
[330311094,1719251432873,-11334.71383091,0.00013483,2]
[330311095,1719251432884,-155.51146802,0.0001354,2]
[330311096,1719251432894,-438.75,0.00013541,2]
[330311097,1719251432903,-510.28,0.00013699,2]
[330311098,1719251432912,-155.97820346,0.00013869,2]
[330311099,1719251432922,-614.47933958,0.0001387,2]
[330311100,1719251432935,-1175.44933757,0.0001387,2]
[330311101,1719251432948,-43022.45371721,0.0001387,2]
[330311102,1719251432957,-527.94009131,0.00013899,2]
[330311103,1719251432967,-646.93267551,0.00013899,2]
[330311104,1719251432976,-302.6660116,0.00013901,2]
[330311105,1719251432989,-157.51550642,0.00013902,2]
[330311106,1719251432999,-294.79,0.00013902,2]
[330311107,1719251433009,-451.86,0.0001399,3]
[330311108,1719251433018,-1437.52003661,0.00013999,5]
[330311109,1719251433028,-324354.37349902,0.00014,2]
[330311110,1719251433040,-909.3594811,0.00014,2]
[330311111,1719251433052,-493.5770007,0.00014,2]
[330311112,1719251433063,-264.82796935,0.00014,2]
[330311113,1719251433126,-294.08982411,0.00014,2]
[330311114,1719251433138,-283.87982098,0.00014,2]
[330311121,1719251438866,-464.58898707,0.000139,2]
[330311123,1719251438878,-177.57201293,0.000139,2]
[330311125,1719251438888,-6577.43983391,0.00014,2]
[330311128,1719251438899,-500.6964493,0.00014,2]
[330311131,1719251438911,-952.2879548,0.00014,2]
[330311134,1719251438923,-384.39306398,0.00014,2]
[330311137,1719251438936,-712.39833394,0.00014,2]
[330311141,1719251438949,-5636.36146083,0.00014,2]
[330311324,1719251440805,-347.1942564,0.00013902,2]
[330311327,1719251440815,-328.63127718,0.00014,2]
[330311375,1719251441216,-688.409537,0.00014,2]
[330311377,1719251441228,-3312.55,0.00014,2]
[330311380,1719251441245,-5683.81517113,0.00014,2]
[330311382,1719251441257,-603.0756416,0.00014,2]
[330311384,1719251441270,-392.09773169,0.00014,2]
[330311386,1719251441282,-2525.4400286,0.00014,2]
[330311622,1719251443637,-36663.47496338,0.00014,2]
[330311790,1719251445141,-2034.54492509,0.00014,2]
[330311792,1719251445152,-266.85750525,0.00014,2]